Cogmind - Beta 16.1 @@@ ROGUE MODE // 2026.02.19 @ 23:46:54 // Winter2019/RPGLIKE Player: badjay Result: Destroyed by S-10 Pest with Light Assault Rifle Performance ------------- Evolutions (2) 1000 Regions Visited (4) 800 Robots Destroyed (9) 45 Value Destroyed (143) 143 Prototype IDs (4) 80 Alien Tech Used (0) 0 Bonus (200) 200 TOTAL SCORE: 2268 Bonus ------- Pacifist 200 Cogmind --------- Core Integrity 0/600 Matter 300/300 Energy 98/100 System Corruption 0% Temperature Cool (0) Movement Flying (40) Location -8/Materials Parts ------- > --- POWER (1) -------- (None) > --- PROPULSION (2) --- Flight Unit > --- UTILITY (2) ------ Structural Scanner Hacking Suite > --- WEAPON (2) ------- Mace Mace > --- INVENTORY (1) ---- Seismic Detector Peak State ------------ > --- POWER ------------ Light Nuclear Core > --- PROPULSION ------- Flight Unit Flight Unit > --- UTILITY ---------- Structural Scanner Hacking Suite > --- WEAPON ----------- Mace Mace > --- INVENTORY -------- Seismic Detector [Rating: 13] Favorites ----------- Power Improved Ion Engine Engine Improved Ion Engine Power Core Light Nuclear Core Propulsion Flight Unit Flight Unit Flight Unit Utility Structural Scanner Device Structural Scanner Hackware Hacking Suite Weapon Mace Energy Gun EM Shotgun Special Weapon Mining Laser Impact Weapon Mace Build | -11 -10 -10 -9 -8 ------- Run | Yrd Mat Min Mat Mat Slots Evolved 3 | . . . 3 . Power . | . . . . . Propulsion 1 | . . . 1 . Utility 1 | . . . 1 . Weapon 1 | . . . 1 . Parts Attached 12 | . 2 . 9 1 Power 2 | . . . 1 1 Engine 1 | . . . 1 . Core 1 | . . . . 1 Reactor . | . . . . . Propulsion 2 | . . . 2 . Treads . | . . . . . Leg . | . . . . . Wheel . | . . . . . Hover . | . . . . . Flight 2 | . . . 2 . Utility 2 | . 1 . 1 . Device 1 | . 1 . . . Storage . | . . . . . Processor . | . . . . . Hackware 1 | . . . 1 . Protection . | . . . . . Artifact . | . . . . . Weapon 6 | . 1 . 5 . Energy Gun 3 | . . . 3 . Energy Cannon . | . . . . . Ballistic Gun . | . . . . . Ballistic Cannon . | . . . . . Launcher . | . . . . . Special Weapon 1 | . 1 . . . Impact Weapon 2 | . . . 2 . Slashing Weapon . | . . . . . Piercing Weapon . | . . . . . Special Melee Weapon . | . . . . . Unidentified Prototypes . | . . . . . Parts Lost 1 | . . . . 1 Power . | . . . . . Propulsion 1 | . . . . 1 Utility . | . . . . . Weapon . | . . . . . Highest Loss Streak 1 | . . . . 1 To Critical Strikes . | . . . . . Average Backups . | . . 1 1 1 Power . | . . . . . Propulsion . | . . . . . Utility . | . . 1 1 1 Weapon . | . . . . . Tool/Special . | . . . . . Unused Backups 1 | . . . . 1 Power . | . . . . . Propulsion . | . . . . . Utility 1 | . . . . 1 Weapon . | . . . . . Tool/Special . | . . . . . Average Slot Usage (%) 66 | . 35 50 75 83 Flight 14 | . . . 19 26 Device 17 | . 18 25 16 14 Hackware 9 | . . . 13 14 Energy Gun 8 | . . . 18 . Special Weapon 8 | . 16 25 4 . Impact Weapon 7 | . . . 1 28 Peak Build Rating 13 | . 2 2 12 13 Average Rating 6 | . 1 2 8 9 On Entrance 2 | . . 2 2 10 Avg Prop Armor Cover (%) . | . . . . . Naked Turns 27 | . 27 . . . Heaviest Build 7 | . 2 2 7 5 Greatest Support 10 | 3 3 3 8 10 Greatest Overweight (x) 1 | . . . 1 . Average Overweight (x) . | . . . . . Largest Inventory Capacity 1 | . 1 1 1 1 Average Capacity . | . . 1 1 1 Most Carried 1 | . 1 1 1 1 Average Carried . | . . 1 1 1 Final Capacity 1 | . 1 1 1 1 Final Carried 1 | . 1 1 1 1 Class Distribution -------------------- 67% | Hacker-Mutant 29% | Hacker-Gladiator Dominant Class ---------------- Hacker-Mutant | -10/Materials Hacker-Mutant | -10/Mines Hacker-Mutant | -9/Materials Hacker-Gladiator | -8/Materials Resources | -11 -10 -10 -9 -8 ----------- Run | Yrd Mat Min Mat Mat Matter Collected 316 | 200 . 16 90 10 Remotely . | . . . . . Salvage Created 190 | . . 42 76 72 Parts 11 | . . . 8 3 Haulers Intercepted 1 | . . . . 1 Recyclers Shooed . | . . . . . Parts Field Recycled . | . . . . . Retrieved Matter . | . . . . . Parts Self-Destructed . | . . . . . Prevented . | . . . . . Parts Restored . | . . . . . Kills | -11 -10 -10 -9 -8 ------- Run | Yrd Mat Min Mat Mat Combat Hostiles Destroyed 8 | . . . 5 3 Melee 2 | . . . . 2 Guns 5 | . . . 5 . Classes Destroyed 3 | . . . 2 1 Hauler 1 | . . . . 1 Swarmer 6 | . . . 4 2 Grunt 2 | . . . 1 1 Best Kill Streak 4 | . . . 4 2 Combat Bots Only 4 | . . . 4 2 Max Kills in Single Turn 1 | . . . 1 1 Gunslinging . | . . . . . Exploded . | . . . . . Melee 1 | . . . . 1 Uniques/NPCs Destroyed . | . . . . . Combat | -11 -10 -10 -9 -8 -------- Run | Yrd Mat Min Mat Mat Hostile Shots Fired 132 | . 1 . 94 37 Missed 50 | . . . 36 14 Hits 82 | . 1 . 58 23 Projectile 82 | . 1 . 58 23 Critical Strikes 2 | . . . 1 1 Damage Taken 848 | . 12 . 603 233 Core 755 | . 12 . 529 214 Absorbed by Shields . | . . . . . Redirected to Core 310 | . . . 248 62 Core Remaining (%) 71 | 100 . 98 17 . Volleys Fired 19 | . . 5 14 . Largest 2 | . . 1 2 . Hottest 100 | . . 100 90 . Shots Fired 25 | . . 5 20 . Gun 20 | . . . 20 . Cannon . | . . . . . Launcher . | . . . . . Special 5 | . . 5 . . Kinetic . | . . . . . Thermal 13 | . . 5 8 . Explosive . | . . . . . Electromagnetic 12 | . . . 12 . Robot Hit Streak 12 | . . 1 12 . Robot Miss Streak 2 | . . 2 2 . Penetration Max . | . . . . . Secondary Targets . | . . . . . Shots Hit Robots 32 | . . 2 15 15 Core Hits 11 | . . 1 8 2 Critical Kills . | . . . . . Critical Parts Destroyed 2 | . . . . 2 Critical Strikes 2 | . . . . 2 Smash 2 | . . . . 2 Melee Attacks 17 | . . . . 17 Impact 17 | . . . . 17 Slashing . | . . . . . Piercing . | . . . . . Sneak Attacks 1 | . . . . 1 Combat Hostiles . | . . . . . Follow-up Attacks 1 | . . . . 1 Damage Inflicted 807 | . 4 48 221 534 Guns 221 | . . . 221 . Cannons . | . . . . . Explosions . | . . . . . Melee 534 | . . . . 534 Ramming 4 | . 4 . . . Kinetic . | . . . . . Thermal 105 | . . 48 57 . Explosive . | . . . . . Electromagnetic 164 | . . . 164 . Impact 534 | . . . . 534 Slashing . | . . . . . Piercing . | . . . . . Highest Corruption . | . . . . . Average Corruption . | . . . . . Corruption Purged . | . . . . . Corruption Blocked . | . . . . . Overload Shots . | . . . . . Overflow Damage 104 | . . 9 . 95 Projectiles 9 | . . 9 . . Explosions . | . . . . . Melee 95 | . . . . 95 Knockbacks 2 | . . . . 2 Impact 2 | . . . . 2 Kinetic . | . . . . . Secondary . | . . . . . Self-Inflicted Damage 2 | . 2 . . . Shots . | . . . . . Rammed 1 | . 1 . . . Targets Rammed 1 | . 1 . . . Kicked . | . . . . . Crushed . | . . . . . Highest Temperature 57 | . . 25 57 6 Average Temperature 20 | . . 25 20 6 Received Heat Transfer 261 | . 6 . 174 81 Siege Activations . | . . . . . Martial Activations . | . . . . . Shielding Activations . | . . . . . Robots Disrupted . | . . . . . Combat Hostiles . | . . . . . Robots Corrupted 1 | . . . . 1 Combat Hostiles 1 | . . . . 1 Parts Fried . | . . . . . Impact Corruptions 6 | . . . . 6 Robots Melted . | . . . . . Combat Hostiles . | . . . . . Parts Melted . | . . . . . Heat Transferred 248 | . . 100 148 . Parts Sabotaged . | . . . . . Parts Stolen . | . . . . . Parts Stripped . | . . . . . Power Chain Reactions . | . . . . . Alert | -11 -10 -10 -9 -8 ------- Run | Yrd Mat Min Mat Mat Maximum Alert Level 1 | . . . 1 . Low Security (%) 97 | 100 100 100 95 100 Level 1 2 | . . . 4 . Level 2 . | . . . . . Level 3 . | . . . . . Level 4 . | . . . . . Level 5 . | . . . . . High Security . | . . . . . Max Security . | . . . . . Peak Influence 210 | . 15 6 210 131 Initial 84 | . . . . 84 Average 62 | . 3 1 95 84 Influence Increases 508 | . 29 12 330 137 Destroy 0b10 Robot/C 160 | . . . 100 60 Destroy 0b10 Robot/NC 15 | . . 10 . 5 Destroy Leader 22 | . . . 10 12 Successful Hack 24 | . 14 . 10 . Destroy Structure 2 | . . 2 . . Partial Spotted 30 | . . . 15 15 Lose Combat Pursuer 255 | . 15 . 195 45 Influence Decreases 377 | . 29 12 130 206 Entered New Map 116 | . . . . 116 Time Decay 251 | . 29 12 130 80 Lost Part 10 | . . . . 10 Squads Dispatched 4 | . 1 . . 3 Investigation . | . . . . . Extermination . | . . . . . Reinforcement 3 | . 1 . . 2 Assault . | . . . . . Garrison 1 | . . . . 1 Intercept . | . . . . . Searches Triggered . | . . . . . Construction Impeded . | . . . . . Haulers Reinforced . | . . . . . Active Scanning Responses . | . . . . . Cargo Convoy Interrupts . | . . . . . Stealth | -11 -10 -10 -9 -8 --------- Run | Yrd Mat Min Mat Mat Distress Signals 5 | . 1 . 1 3 Communications Jammed . | . . . . . Distress Signals . | . . . . . Times Spotted 44 | . 8 . 23 13 Peak Tracking Total 8 | . 5 . 8 5 Tactical Retreats 9 | . 1 . 6 2 Traps | -11 -10 -10 -9 -8 ------- Run | Yrd Mat Min Mat Mat Traps Triggered . | . . . . . Indirectly . | . . . . . Trap Hack Attempts . | . . . . . Triggered . | . . . . . Disarmed . | . . . . . Reprogrammed . | . . . . . Reused . | . . . . . Traps Extracted . | . . . . . Installed . | . . . . . Triggered . | . . . . . Machines | -11 -10 -10 -9 -8 ---------- Run | Yrd Mat Min Mat Mat Machines Disabled . | . . . . . Max in Single Turn . | . . . . . Machines Repaired . | . . . . . Machines Dismantled . | . . . . . Machines Sabotaged . | . . . . . Overloaded Fab Kills . | . . . . . Hacking | -11 -10 -10 -9 -8 --------- Run | Yrd Mat Min Mat Mat Machines Accessed 14 | . 4 . 4 6 Terminals 12 | . 4 . 3 5 Fabricators . | . . . . . Repair Stations . | . . . . . Recycling Units . | . . . . . Scanalyzers 2 | . . . 1 1 Garrison Access . | . . . . . Total Hacks 80 | . 29 . 16 35 Successful 65 | . 23 . 12 30 Failed 15 | . 6 . 4 5 Catastrophic 1 | . . . . 1 Database Lockouts . | . . . . . Manual 55 | . 19 . 12 24 Terminals 77 | . 29 . 15 33 Fabricators . | . . . . . Repair Stations . | . . . . . Recycling Units . | . . . . . Scanalyzers 3 | . . . 1 2 Garrison Access . | . . . . . Terminal Hacks 25 | . 10 . 2 13 Robot Analysis 1 | . 1 . . . Prototype ID Bank 2 | . . . . 2 Branch Access Points 2 | . 1 . . 1 Locate Traps 2 | . 2 . . . Dispatch Records 1 | . 1 . . . Security Status 1 | . 1 . . . Transport Status 1 | . 1 . . . Reinforcement Status 2 | . 1 . . 1 Recall Investigation 2 | . . . . 2 Recall Extermination 1 | . . . . 1 Recall Reinforcements 2 | . . . . 2 Hauler Manifests 2 | . . . 1 1 Registered Components 2 | . 1 . . 1 Zone Layout 4 | . 1 . 1 2 Fabricator Hacks . | . . . . . Repair Station Hacks . | . . . . . Recycling Unit Hacks . | . . . . . Scanalyzer 3 | . . . 1 2 Retrieve Study 3 | . . . 1 2 Garrison Access Hacks . | . . . . . Unauthorized Hacks 37 | . 13 . 9 15 Terminals 37 | . 13 . 9 15 Track 8 | . 3 . 2 3 Assimilate 1 | . 1 . . . Botnet 10 | . 4 . 2 4 Disrupt 2 | . . . 1 1 Operators 4 | . 1 . 1 2 Skim 12 | . 4 . 3 5 Fabricators . | . . . . . Repair Stations . | . . . . . Recycling Units . | . . . . . Scanalyzers . | . . . . . Garrison Access . | . . . . . Data Cores Recovered . | . . . . . Used . | . . . . . Hacking Detections 10 | . 4 . 3 3 Full Trace Events . | . . . . . Feedback Events . | . . . . . Feedback Blocked . | . . . . . Robot Schematics Acquired . | . . . . . Robots Built . | . . . . . Authchips . | . . . . . Time . | . . . . . Total Robot Build Rating . | . . . . . Part Schematics Acquired . | . . . . . Parts Built . | . . . . . Authchips . | . . . . . Time . | . . . . . Total Part Build Rating . | . . . . . Part Studies Acquired 3 | . . . 1 2 Parts Repaired . | . . . . . Time . | . . . . . Parts Recycled . | . . . . . Recycled Matter . | . . . . . Retrieved Matter . | . . . . . Retrieved Components . | . . . . . Parts Scanalyzed . | . . . . . Part Schematics Acquired . | . . . . . Parts Damaged . | . . . . . Bothacking | -11 -10 -10 -9 -8 ------------ Run | Yrd Mat Min Mat Mat Used RIF Installer . | . . . . . Robots Hacked . | . . . . . Non-combat . | . . . . . Combat . | . . . . . Robot Hacks Applied . | . . . . . Relay Couplers Released . | . . . . . Fabnet Peak Effective % . | . . . . . Robots Rewired . | . . . . . Allies Hacked . | . . . . . Hacks Repelled . | . . . . . Allies | -11 -10 -10 -9 -8 -------- Run | Yrd Mat Min Mat Mat Total Allies 1 | . 1 . . . Largest Group 1 | . 1 1 1 . Highest-Rated Group 10 | . 10 10 10 . Highest-Rated Ally 10 | . 10 10 10 . Total Orders . | . . . . . Ally Attacks . | . . . . . Total Damage . | . . . . . Kills . | . . . . . Allies Corrupted . | . . . . . Allies Melted . | . . . . . Intel | -11 -10 -10 -9 -8 ------- Run | Yrd Mat Min Mat Mat Active Infowar (turns) 662 | . 113 73 304 172 Structural 662 | . 113 73 304 172 Robot Analysis Total 1 | . 1 . . . Derelict Logs Recovered . | . . . . . Drone Launches . | . . . . . Drone Recoveries . | . . . . . Exploration | -11 -10 -10 -9 -8 ------------- Run | Yrd Mat Min Mat Mat Turns Passed 703 | 14 140 73 304 172 Spaces Moved 915 | 29 241 35 350 260 Core 419 | 29 241 35 114 . Treads . | . . . . . Legs . | . . . . . Wheels . | . . . . . Hover . | . . . . . Flight 496 | . . . 236 260 Fastest Speed 37 | 50 50 50 37 37 Average Speed 44 | 50 50 50 44 37 Slowest Speed 100 | 50 50 50 100 40 Overloaded Moves . | . . . . . Propulsion Burnouts . | . . . . . Robots Hopped 4 | . . . 4 . Potential Cave-ins . | . . . . . Cave-ins Triggered . | . . . . . Exploration Rate (%) 24 | 3 45 11 38 25 Regions Visited 4 Branch Regions 1 Pre-discovered Areas . | . . . . . Known Exits Taken 1 | . 1 . . . Unknown Exits Taken 3 | 1 . 1 1 . Scrap Searched . | . . . . . Spaces Dug . | . . . . . Terrain Destroyed 2 | . . 2 . . Melee . | . . . . . Projectile 2 | . . 2 . . AOE . | . . . . . Terrain Rammed . | . . . . . Walls Destroyed . | . . . . . Machines Disabled . | . . . . . Actions | -11 -10 -10 -9 -8 --------- Run | Yrd Mat Min Mat Mat Total 1141 | 28 258 74 471 310 Wait 176 | . 14 35 98 29 Move 904 | 28 240 34 342 260 Hop 3 | . . . 3 . Pick Up 1 | . 1 . . . Fast Attach 10 | . 2 . 7 1 Attach . | . . . . . Detach . | . . . . . Swap 2 | . . . 2 . Drop 4 | . . . 3 1 Fire 19 | . . 5 14 . Melee 14 | . . . . 14 Ram 1 | . 1 . . . Kick . | . . . . . Crush . | . . . . . Escape Stasis . | . . . . . Rewire . | . . . . . Trap . | . . . . . Miscellaneous 7 | . . . 2 5 Route ------- -11/Scrapyard -10/Materials (discovered 2 exits: *Min / [Sub]) -10/Mines -9/Materials -8/Materials (discovered 2 exits: *Sto x2) History --------- Turn | Location | Event 7 | -11/Scrapyard | Discovered new exit (range 12) 15 | -11/Scrapyard | Entered Materials 34 | -10/Materials | Discovered new exit (range 16) 36 | -10/Materials | Identified exit to Mines 93 | -10/Materials | Discovered new exit (range 7) 155 | -10/Materials | Entered Mines 155 | -10/Mines | Accompanied by 1 ally 215 | -10/Mines | Discovered new exit (range 6) 216 | -10/Mines | Assembled infested the area 228 | -10/Mines | Entered Materials 228 | -9/Materials | Accompanied by 1 ally 230 | -9/Materials | Reached level 2 248 | -9/Materials | Upgraded with Utility slot (x1) 307 | -9/Materials | Core integrity fell below 50% 320 | -9/Materials | Upgraded with Propulsion slot (x1) 332 | -9/Materials | Upgraded with Weapon slot (x1) 357 | -9/Materials | Build established: Hacker-Mutant 504 | -9/Materials | Discovered new exit (range 5) 532 | -9/Materials | Core integrity fell below 20% 532 | -9/Materials | Entered another Materials area 533 | -8/Materials | Core integrity fell below 50% 533 | -8/Materials | Core integrity fell below 20% 534 | -8/Materials | Reached level 3 560 | -8/Materials | Discovered new exit (range 10) 610 | -8/Materials | Garrison activated, responded to threat 624 | -8/Materials | Identified exit to Storage 684 | -8/Materials | Learned location of 3 exits from Factory 702 | -8/Materials | Reached level 4 704 | -8/Materials | Destroyed by S-10 Pest with Light Assault Rifle Last Messages --------------- Downloading performance data... Effective improvements: +10% accuracy 00631_ W-25 Informer sends out distress signal. 00671_ W-25 Informer suffers critical hit (Smash). 00671_ Destroyed Imp. Hover Unit. 00671_ W-25 Informer system corrupted by crushing effect. 00684_ >> SKIM: Stored Factory exits (x3). 00685_ G-47 Trooper knocked back. 00685_ Flight Unit+ destroyed. 00690_ K-01 Serf collects debris. 00693_ Destroyed Lgt. Ion Engine. 00693_ S-10 Pest system corrupted by crushing effect. 00698_ S-10 Pest destroyed. 00701_ S-10 Pest misfires. 00702_ Reached level 4. 00702_ S-10 Pest destroyed. Map ----- +----------------------------------------------------+ | ???????????????? # # ??????????????????????????? | | ???????????????? + # ??????????????????????????? | | ???????????????? # # ??????????????????????????? | | ???????????????? # + ??????????????????????????? | | ???????????????? # # ""T"" #??# """ ##??????? | | ???????????????? # # """"" #??# #??????? | | ???????????????? # # #??#########??????? | | ???????????????? # #############???????????????? | | ????????????????## # """ """ #???????????????? | | ????????????????## # """"""""" #???????????????? | | # ?????????????## # """"" #???????????????? | | #/#?????????????## # #?????########### | | # #?????####?##### # #?????########### | | #k#?????# # # ######## ! | | # #?????# # # ######## | | # #?????# # #####+######## # ! | | # #?????# / # % ! # | | # ##????# + [[ + ! | | # ##????# # "" # | | # ##?#### # ###/###### T" # | | # ##?#### # # g ###!!! "" # | | # ##?## + # # ###!![ ####+####+ | | # ##### ##Y####### # ###!![ #### ### | | # ##### ########## # ss ### #### ### | | # ##??????## + % ### T### ### | | # ########## # %=@= ### #### ### | | # "" #################/##### #### ### | | + "T [ #### ##### | | # "" ################## === #### ##### | | # ################## == #### ##### | | # ##????????# ? # == #### ##### | | # """ ##????????# ? # = | | # """ #########?# ?"" + #### | | #^ """ #########?# ?"" # #### | | #^ !# ##?# ?"" # ########o##### | | # # ##?# ?????## ########### ???? | | #] """ # """##?##?????## ########???????????? | | """ # """##?????????? ##?????????????????? | | """ # """##?????????? ##?????????????????? | | + #####???????? ##?????????????????? | | #+###### ????????? ##?????????????????? | | ! ######""" ?????????????????????????????? | | # ##### ###??#""" ?????????????????????????????? | | # ##### ###????????????????????????????????????? | | #+##### T##????????????????????????????????????? | | # ###????????????????????????????????????? | | = """ # ###????????????????????????????????????? | | """ # ##?????????????????????????????????????? | | """ # ##?????????????????????????????????????? | | + ##?????????????????????????????????????? | +----------------------------------------------------+ Best States ------------- Heat Dissipation 25 Energy Generation 12 Energy Capacity 265 Matter Stores 300 Matter Capacity 300 Sight Range 16 Terrain Scan Density 10 Evasion (%) 62 Offensive Hacking 25 Defensive Hacking 15 Item Schematics ----------------- None Robot Schematics ------------------ None Fabricated ------------ Nothing Repaired ---------- Nothing Studied --------- Mining Laser | -9/Materials | Hacked Flight Unit | -8/Materials | Hacked Mace | -8/Materials | Hacked Alien Tech Used ----------------- None Achievements -------------- None Challenges ------------ None RPGLIKE | -11 -10 -10 -9 -8 --------- Run | Yrd Mat Min Mat Mat Levels Raised 3 | . . . 1 2 XP Earned 7580 | 3000 30 600 2100 1850 XP Spent 5850 | . 2950 . 1500 1400 Upgrades 14 | . 7 . 3 4 Propulsion Slot 1 | . . . 1 . Utility Slot 1 | . . . 1 . Weapon Slot 1 | . . . 1 . Inventory Capacity 1 | . 1 . . . Melee Accuracy 4 | . . . . 4 Hack Attack % 3 | . 3 . . . Hack Defense % 3 | . 3 . . . Protomatter Created 69 | . . . 26 43 Integrity Restored 150 | . . . 48 102 Core 150 | . . . 48 102 Protomatter Decayed 63 | . . . . 63 Game ------ Seed SigixArmageddonInjector Manual? 0 Play Time 00:20:22 Cumulative 191.0 hours Start 2026.02.19 @ 23:26:54 End 2026.02.19 @ 23:46:54 Sessions 1 Manual Loads 0 Difficulty Rogue Special Mode Winter2019/RPGLIKE Game No. 197 Rogue 197 Adventurer 0 Explorer 0 Win Type - Total 13 Types 11/0/0/1/0/0/1/0/0/0 Lore% 44 Gallery% 56 Achievement% 46 Wizard Run 0 Options --------- Layout 2 ASCII 0 Keyboard 0 Movement Numpad Keybinds 0 Fullscreen 1 Font 24/Smallcaps Map View 50x44 Zoom Use 0% Tactical HUD 1 Map Filters NONE Filters NONE Steam 1 RUN: e16e3104-7b78-44af-9bfa-705e763d0399